bitfinex/quotes_ETHUSD_20251021
["timestamp","ask_amount","ask_price","bid_price","bid_amount"]
[1761055259566,0.001,3874.5,3874.4,3.09984316]
[1761055260326,0.2353,3875.7,3875.1,2.58057856]
[1761055260621,0.69047181,3876.9,3875.4,2.58037879]
[1761055260793,0.55214062,3876.8,3875.4,2.58037879]
[1761055260993,0.204,3876.6,3875.4,6.49197879]
[1761055261194,0.4336,3875.8,3875.4,2.58037879]
[1761055261497,0.4336,3875.8,3874.2,2.58112795]
[1761055261498,0.4336,3875.5,3874.2,2.58112795]
[1761055261700,0.4336,3875.5,3873.8,0.1604]
[1761055261896,1.728,3875.4,3874.7,2.58081443]
[1761055262094,1.728,3875.4,3873.6,2.58157786]
[1761055262095,1.728,3875.1,3873.7,2.58146692]
[1761055262296,0.55173687,3875.0,3873.3,2.58177781]
[1761055262510,2.58125598,3874.1,3873.9,0.1288]
[1761055262711,0.3641,3874.0,3873.1,0.1654]
[1761055263028,0.1288,3874.5,3874.4,2.5810448]
[1761055263184,0.4342,3874.5,3874.0,2.5813113]
[1761055263382,0.4342,3874.5,3873.9,0.1288]
[1761055263583,0.4342,3874.5,3873.1,0.002]
[1761055263783,1.728,3874.0,3873.1,0.002]
[1761055264026,0.1728,3874.0,3873.5,2.58161366]
[1761055264334,0.4342,3874.5,3873.8,2.58143844]
[1761055264335,0.2353,3874.1,3873.8,2.58143844]
[1761055264634,2.64521655,3875.0,3874.3,2.5810534]
[1761055264635,0.55178623,3874.4,3874.3,2.5810534]
[1761055264782,0.6695,3874.6,3874.3,2.5810534]
[1761055264783,0.6695,3874.6,3874.3,2.58105222]
[1761055264987,0.6695,3874.6,3873.4,3.44]
[1761055265285,0.2353,3874.6,3873.5,0.344]
[1761055265486,0.4342,3874.5,3873.1,0.1654]
[1761055265689,2.1622,3874.5,3873.8,2.58143491]
[1761055266003,1.728,3874.3,3873.7,2.58149879]
[1761055266204,0.4342,3874.4,3873.7,2.58149879]
[1761055266417,0.4342,3874.3,3873.5,2.58163664]
[1761055266616,0.98723973,3874.3,3873.9,2.58137286]
[1761055266816,0.4342,3874.3,3874.0,2.58128702]
[1761055266987,0.4342,3874.3,3873.1,0.1654]
[1761055267387,0.4342,3874.3,3874.0,2.5813059]
[1761055267593,0.2353,3874.6,3873.3,0.4716]
[1761055267824,0.4342,3874.5,3873.4,2.58171115]
[1761055268025,0.4342,3874.5,3873.1,0.1654]
[1761055268026,0.4342,3874.5,3873.3,2.58177781]
[1761055268213,0.4342,3874.5,3873.5,2.5816445]
[1761055268214,0.55229418,3874.5,3873.5,2.5816445]
[1761055268413,0.001,3874.5,3874.4,2.5810448]
[1761055268723,0.001,3874.5,3873.4,0.27471778]
[1761055268724,0.4352,3874.5,3873.4,0.27471778]
[1761055268921,0.2353,3873.5,3873.1,0.002]
[1761055269249,0.2353,3873.5,3873.4,2.58171115]
[1761055269395,0.6695,3873.5,3873.4,2.58171115]
[1761055269893,0.6695,3873.5,3873.1,0.002]
[1761055270094,0.4342,3873.4,3873.1,0.002]
[1761055270495,0.2353,3873.5,3873.2,2.58178331]
[1761055270729,0.2353,3873.5,3873.4,2.58171115]
[1761055271030,0.2353,3873.5,3873.3,2.58176867]
[1761055271227,0.6695,3873.5,3873.2,2.58183063]
[1761055271614,0.4342,3873.4,3873.3,2.58177781]
[1761055272131,0.4342,3873.4,3873.1,0.002]
[1761055272627,1.728,3873.3,3873.1,0.002]
[1761055272826,0.4342,3873.2,3873.1,0.002]
[1761055273335,2.1622,3873.2,3873.1,0.002]
[1761055273642,3.17682792,3873.2,3873.1,0.002]
[1761055274246,5.75867238,3873.2,3873.1,0.002]
[1761055274543,3.17682792,3873.2,3873.1,0.002]
[1761055274843,0.1288,3873.3,3873.1,2.58390882]
[1761055275084,0.2353,3873.5,3873.4,2.58171115]
[1761055275286,0.2353,3873.5,3873.3,2.58175564]
[1761055275585,0.2353,3873.5,3873.1,2.5839048]
[1761055275586,0.6695,3873.5,3873.2,2.58182378]
[1761055275733,3.439,3873.4,3873.1,0.002]
[1761055275940,4.28405,3873.4,3873.1,0.002]
[1761055276185,0.4342,3873.3,3873.1,0.002]
[1761055276476,2.1622,3873.3,3873.1,0.002]
[1761055276837,1.728,3873.3,3873.1,0.002]
[1761055277036,1.728,3873.3,3873.1,2.58387889]
[1761055277037,2.1622,3873.3,3873.1,2.58387889]
[1761055277280,2.352735,3873.3,3873.1,0.002]
[1761055277437,0.4342,3873.2,3873.1,0.002]
[1761055278149,2.352735,3873.3,3873.1,2.58391113]
[1761055278335,1.728,3873.3,3873.2,2.58184446]
[1761055278536,1.728,3873.3,3873.1,0.002]
[1761055278537,3.439,3873.4,3873.3,2.58177781]
[1761055278735,3.439,3873.4,3873.1,0.002]
[1761055278950,3.8732,3873.4,3873.2,2.58184379]
[1761055279542,0.4342,3873.3,3873.1,0.002]
[1761055279749,5.167,3873.4,3873.3,2.58177781]
[1761055279976,3.439,3873.4,3873.3,2.58177781]
[1761055280140,0.40493512,3874.1,3873.3,0.51656779]
[1761055280340,5.167,3874.1,3874.0,2.5813113]
[1761055280685,0.4435,3874.0,3873.1,2.58388853]
[1761055280883,2.1715,3874.0,3873.1,0.002]
[1761055281089,2.1715,3873.9,3873.3,2.58173342]
[1761055281300,0.001,3874.5,3873.4,0.02581711]
[1761055281440,0.001,3874.5,3874.4,2.7414448]
[1761055281644,0.001,3874.5,3874.4,3.27370197]
[1761055281848,0.001,3874.5,3874.4,3.74681241]
[1761055282074,0.001,3874.5,3874.4,3.11330197]
[1761055282377,0.001,3874.5,3874.1,0.1604]
[1761055282596,0.001,3874.5,3873.2,0.6127]
[1761055282888,0.001,3874.5,3874.0,2.58126217]
[1761055283074,0.001,3874.5,3873.4,6.02067462]
[1761055283075,0.001,3874.5,3873.4,3.439]
[1761055283276,0.001,3874.5,3873.2,2.7472351]
[1761055283598,0.001,3874.5,3874.4,2.5810448]
[1761055283893,0.001,3874.5,3874.3,2.58109791]
[1761055284193,0.4485,3874.5,3873.4,2.58171115]
[1761055284359,0.4485,3874.5,3873.9,2.58135836]
[1761055284558,1.728,3874.4,3873.9,2.58136737]
[1761055284769,0.39045,3874.3,3873.0,2.58191556]
[1761055284968,0.1288,3874.2,3873.5,0.1288]
[1761055285290,3.438,3874.1,3873.6,2.58157626]
[1761055285790,0.446,3874.0,3873.5,0.1288]
[1761055286390,0.446,3874.0,3873.7,2.58145955]
[1761055286687,0.446,3874.0,3873.6,2.58355827]
[1761055286898,3.438,3874.1,3874.0,2.5813113]
[1761055287281,0.2269,3874.9,3874.0,2.5813113]
[1761055287282,0.001,3874.9,3874.4,2.5810448]
[1761055287460,0.001,3874.9,3874.4,3.6781248]
[1761055287654,0.001,3874.9,3874.4,3.1712448]
[1761055287897,0.001,3874.9,3874.4,6.4804448]
[1761055288194,0.001,3874.9,3874.4,2.5810448]
[1761055288393,0.001,3874.9,3874.4,3.11330211]
[1761055288579,0.001,3874.9,3874.4,3.57470211]
[1761055289097,0.001,3874.9,3874.0,0.52915063]
[1761055289262,0.001,3874.9,3874.1,0.6218]
[1761055290093,0.001,3874.9,3873.7,2.58151121]
[1761055290294,0.4451,3874.5,3873.2,0.002]
[1761055290516,0.4451,3874.5,3873.6,3.439]
[1761055290717,0.001,3874.5,3873.6,3.9004]
[1761055290879,0.001,3874.5,3874.4,2.5810448]
[1761055291235,0.001,3874.5,3873.6,6.02053067]
[1761055291236,0.4451,3874.5,3873.6,6.02053067]
[1761055291496,0.4451,3874.5,3873.6,0.002]
[1761055291880,0.4451,3874.5,3873.7,2.58145407]
[1761055292085,0.4451,3874.5,3874.0,2.58126199]
[1761055292397,0.001,3874.5,3873.6,0.02781577]
[1761055292601,0.001,3874.5,3874.4,0.1604]
[1761055292905,0.001,3874.5,3873.7,0.4614]
[1761055293075,0.001,3874.5,3874.4,2.5810448]
[1761055295296,0.001,3874.5,3874.4,3.15944224]
[1761055295669,0.001,3874.5,3874.4,2.5810448]
[1761055296088,0.001,3874.5,3874.4,3.0424448]
[1761055296260,0.001,3874.5,3874.4,23.05062376]
[1761055296465,0.001,3874.9,3874.8,2.58077836]
[1761055296680,0.001,3874.9,3874.8,3.04217836]
[1761055296888,0.001,3874.9,3874.8,9.3011701]
[1761055297083,0.001,3874.9,3874.8,9.27536232]
[1761055297555,0.001,3874.9,3874.8,6.57908232]
[1761055297865,0.001,3874.9,3874.8,6.70788232]
[1761055298032,0.001,3874.9,3874.8,3.27188232]
[1761055298367,0.001,3874.9,3874.8,6.70788232]
[1761055299720,0.001,3874.9,3874.8,2.70957836]
[1761055299926,0.001,3874.9,3874.8,6.14557836]
[1761055301161,0.001,3874.9,3874.8,2.70957836]
[1761055302044,0.6765,3874.9,3874.8,0.1288]
[1761055302249,0.6765,3874.9,3874.4,0.1288]
[1761055302250,0.2338,3874.9,3874.4,0.1288]
[1761055302564,0.4427,3874.8,3874.6,2.58090784]
[1761055302765,0.4427,3874.8,3874.4,2.70983033]
[1761055302957,0.24045,3874.7,3874.4,0.1288]
[1761055303140,0.24045,3874.7,3874.4,2.70983665]
[1761055303330,0.4427,3874.6,3874.4,2.70983665]
[1761055303778,0.4427,3874.6,3874.5,2.58097819]
[1761055304076,0.2338,3874.9,3874.8,2.58077836]
[1761055304245,0.2338,3874.9,3874.4,0.1288]
[1761055304580,0.2338,3874.9,3874.8,2.58077836]
[1761055304750,0.4427,3874.8,3874.4,0.1288]
[1761055305251,0.4427,3874.8,3874.7,2.58084496]
[1761055305453,0.2338,3874.9,3874.6,2.58088732]
[1761055305653,0.4427,3874.8,3874.7,2.58082636]
[1761055306073,0.2338,3874.9,3874.7,2.58082636]
[1761055306246,0.2338,3874.9,3874.8,2.58077836]
[1761055306453,0.2328,3874.8,3874.5,0.002]
[1761055306643,0.2311,3874.9,3874.6,0.1288]
[1761055306843,0.6765,3874.9,3874.8,2.58077836]
[1761055307045,0.001,3874.9,3874.8,2.58077836]
[1761055307271,1.728,3875.4,3875.0,2.58058609]
[1761055307439,0.5164,3875.3,3875.1,2.58057185]
[1761055307891,0.9596,3875.3,3875.1,2.58057185]
[1761055308176,0.001,3875.5,3875.1,2.58056561]
[1761055308339,0.001,3875.5,3875.2,0.1288]
[1761055308539,0.001,3875.5,3875.4,2.58037879]
[1761055312575,0.001,3875.5,3875.4,6.01437879]
[1761055312974,0.001,3875.5,3875.4,2.58037879]
[1761055313275,0.4464,3875.5,3874.7,0.1654]
[1761055313476,0.4464,3875.5,3874.3,2.58105007]
[1761055313681,0.4464,3875.5,3875.0,2.58060347]
[1761055313976,0.4464,3875.5,3875.1,2.58053464]
[1761055314168,0.4464,3875.5,3875.0,2.58063626]
[1761055314539,0.4464,3875.5,3875.1,2.58057496]
[1761055314742,0.4464,3875.5,3875.0,2.58064189]
[1761055314968,0.4464,3875.5,3875.1,2.58056296]
[1761055315174,0.94501314,3875.5,3874.9,2.58065659]
[1761055315348,0.94501314,3875.5,3874.5,2.58292071]
[1761055315554,0.99825763,3875.4,3874.5,2.58297671]
[1761055315743,0.4454,3875.4,3874.9,2.58068989]
[1761055315940,0.9982674,3875.4,3874.9,2.58068989]
[1761055316161,0.9982674,3875.4,3874.7,2.58084496]
[1761055316389,0.9982674,3875.4,3874.6,2.58090219]
[1761055316593,0.9982674,3875.4,3874.5,0.002]
[1761055316594,0.2171,3874.6,3874.5,0.002]
[1761055316812,1.9451,3874.6,3874.5,0.002]
[1761055316985,2.9583674,3874.6,3874.5,0.002]
[1761055317198,3.81127897,3874.6,3874.5,0.002]
[1761055319011,1.2303674,3874.6,3874.5,0.002]
[1761055319224,1.9384774,3874.6,3874.5,0.002]
[1761055319380,4.51938897,3874.6,3874.5,0.002]
[1761055319582,6.24738897,3874.6,3874.5,0.002]
[1761055320003,3.6664774,3874.6,3874.5,0.002]
[1761055320208,6.24738897,3874.6,3874.5,0.002]
[1761055320405,2.6267674,3874.6,3874.5,0.002]
[1761055320607,0.1298,3875.5,3875.2,2.58051197]
[1761055320823,0.001,3875.5,3875.4,2.58037879]
[1761055321021,0.001,3875.5,3875.4,6.01337879]
[1761055321252,0.001,3875.5,3875.4,7.90570787]
[1761055321540,0.001,3875.5,3875.4,3.50262787]
[1761055321742,0.001,3875.5,3874.8,0.1654]
[1761055321928,0.001,3875.5,3874.5,3.435]
[1761055322258,0.001,3875.5,3875.4,2.58037879]
[1761055322624,0.001,3875.5,3874.6,0.4632]
[1761055322921,0.001,3875.5,3875.1,2.58051335]
[1761055323112,0.001,3875.5,3874.6,0.4632]
[1761055323113,0.001,3875.5,3875.4,2.58037879]
[1761055324027,0.001,3875.5,3875.4,3.09646726]
[1761055324216,0.001,3875.5,3875.4,3.58547104]
[1761055324416,0.001,3875.5,3875.4,3.09646726]
[1761055327457,0.001,3875.5,3875.3,0.002]
[1761055327687,0.001,3875.5,3875.4,2.58037879]
[1761055327993,0.4704,3875.5,3875.3,0.002]
[1761055328144,0.001,3875.5,3875.3,0.002]
[1761055328344,0.001,3875.5,3875.4,2.58037879]
[1761055328997,0.001,3875.5,3875.3,0.002]
[1761055329286,0.001,3875.5,3875.4,2.58037879]
[1761055329999,0.001,3875.5,3875.3,0.002]
[1761055330155,0.001,3875.5,3875.4,2.58037879]
[1761055330497,0.001,3875.5,3875.4,2.60618257]
[1761055330636,0.001,3875.5,3875.4,3.5624467]
[1761055330843,0.001,3875.5,3875.4,4.0693267]
[1761055331082,0.001,3875.5,3875.4,3.5624467]
[1761055331277,0.001,3875.5,3875.4,2.58037879]
[1761055331450,0.4628,3875.5,3875.3,0.002]
[1761055332282,2.1908,3875.5,3875.3,0.002]
[1761055332572,0.5523664,3875.4,3875.3,0.002]
[1761055332783,0.4618,3875.4,3875.3,0.002]
[1761055332965,0.99423589,3875.4,3875.3,0.002]
[1761055333290,2.81280229,3875.4,3875.3,0.002]
[1761055333456,2.2803664,3875.4,3875.3,0.002]
[1761055333657,2.74216909,3875.4,3875.3,0.002]
[1761055334476,5.32254788,3875.4,3875.3,0.002]
[1761055334679,2.74216909,3875.4,3875.3,0.002]
[1761055334850,3.8757363,3875.4,3875.3,0.002]
[1761055335057,3.4139363,3875.4,3875.3,0.002]
[1761055335263,2.28036909,3875.4,3875.3,0.002]
[1761055335462,2.74216909,3875.4,3875.3,0.002]
[1761055337560,2.28036909,3875.4,3875.3,0.002]
[1761055338292,3.432,3875.5,3875.3,2.58244538]
[1761055338461,3.432,3875.5,3875.3,0.002]
[1761055338657,0.3433,3875.4,3875.3,0.002]
[1761055338851,3.432,3875.5,3875.3,0.002]
[1761055339085,5.16,3875.5,3875.4,2.58037879]
[1761055339487,5.6218,3875.5,3875.3,0.002]
[1761055339694,5.16,3875.5,3875.3,0.002]
[1761055339870,2.1898,3875.4,3875.3,0.002]
[1761055340055,2.75208,3875.4,3875.3,0.002]
[1761055340256,5.8844797,3875.4,3875.3,0.002]
[1761055340460,2.58064516,3875.0,3874.9,0.002]
[1761055340755,6.56266607,3875.0,3874.9,0.002]
[1761055340954,7.02246607,3875.0,3874.9,0.002]
[1761055341186,12.11916925,3875.0,3874.9,0.002]
[1761055341390,10.46963889,3875.0,3874.9,0.002]
[1761055341589,12.83019825,3875.0,3874.9,0.002]
[1761055342069,10.46944969,3875.0,3874.9,0.002]
[1761055342257,19.41463325,3875.0,3874.9,0.002]
[1761055342456,18.46614625,3875.0,3874.9,0.002]
[1761055342672,25.92313769,3875.0,3874.9,0.002]
[1761055342878,25.23344525,3875.0,3874.9,0.002]
[1761055343212,22.87800681,3875.0,3874.9,0.002]
[1761055343408,22.18861325,3875.0,3874.9,0.002]
[1761055343617,20.59122525,3875.0,3874.9,0.002]
[1761055343916,9.77975725,3875.0,3874.9,0.002]
[1761055344409,10.46904784,3875.0,3874.9,0.002]
[1761055344603,9.77975725,3875.0,3874.9,0.002]
[1761055344913,2.28002091,3875.0,3874.9,0.002]
[1761055345115,0.55202091,3875.0,3874.9,3.01231176]
[1761055345279,3.431,3875.5,3875.0,2.58064516]
[1761055345480,5.159,3875.5,3875.4,2.58037879]
[1761055345682,0.001,3875.5,3875.4,2.58037879]
[1761055345882,0.001,3875.5,3875.4,3.09646759]
[1761055347405,0.001,3875.5,3874.9,0.002]
[1761055347686,0.001,3875.5,3875.4,2.58037879]
[1761055347891,0.001,3875.5,3875.0,0.4296]
[1761055347892,0.001,3875.5,3875.0,2.58064516]
[1761055348092,0.4685,3875.4,3874.9,0.002]
[1761055348298,0.001,3875.5,3874.9,0.002]
[1761055348495,0.001,3875.5,3875.4,2.58037879]
[1761055349584,0.001,3875.5,3874.9,0.002]
[1761055349585,0.4695,3875.5,3874.9,2.58266355]
[1761055349888,3.73407315,3875.4,3874.9,0.002]
[1761055350112,3.429,3875.4,3875.1,2.58057281]
[1761055350317,3.429,3875.4,3874.9,0.002]
[1761055350904,3.429,3875.4,3875.1,2.58057579]
[1761055351222,3.429,3875.4,3875.0,2.58062976]
[1761055351424,0.4685,3875.3,3874.9,0.002]
[1761055351607,3.09135457,3875.3,3874.9,0.002]
[1761055351806,1.728,3875.1,3874.9,0.002]
[1761055352102,0.55185457,3875.0,3874.9,0.002]
[1761055352322,0.5517861,3875.2,3874.9,0.002]
[1761055352496,1.15706471,3875.2,3874.9,0.002]
[1761055352899,0.5517861,3875.2,3874.9,0.002]
[1761055353116,0.8947861,3875.3,3875.2,2.58051197]
[1761055353295,3.429,3875.4,3875.3,2.58044538]
[1761055355294,0.001,3875.5,3875.4,2.58037879]
[1761055355606,0.001,3875.5,3875.4,3.00997879]
[1761055355800,0.001,3875.5,3875.4,3.98167981]
[1761055356332,0.001,3875.5,3875.4,4.48855981]
[1761055356513,0.001,3875.5,3875.4,4.46275603]
[1761055356719,0.001,3876.3,3875.4,6.21655981]
[1761055356918,0.001,3876.3,3876.2,2.74024624]
[1761055357116,0.001,3876.3,3876.2,3.83066393]
[1761055358265,0.001,3876.3,3876.2,3.24066393]
[1761055358426,0.001,3876.3,3876.2,0.1288]
[1761055358743,0.001,3876.3,3876.2,2.57984624]
[1761055360018,0.001,3876.3,3876.0,0.1288]
[1761055360229,0.001,3876.3,3876.2,2.57984624]
[1761055360761,0.001,3876.3,3876.2,3.0352447]
[1761055360915,0.001,3876.3,3876.2,3.57096692]
[1761055362444,0.001,3876.3,3876.2,3.14136692]
[1761055363046,0.001,3876.3,3876.2,3.57096692]
[1761055363420,0.001,3876.3,3876.2,3.59676538]
[1761055363735,0.001,3876.3,3876.2,4.07784692]
[1761055364844,0.001,3876.3,3876.2,3.14136692]
[1761055365062,0.001,3876.3,3876.2,6.99696692]
[1761055365264,0.001,3876.3,3876.2,6.56736692]
[1761055365569,0.001,3876.3,3874.6,0.12823538]
[1761055365570,0.001,3876.3,3875.2,0.4296]
[1761055365930,0.001,3876.3,3876.1,2.5798901]
[1761055366150,0.001,3876.3,3875.4,0.4296]
[1761055366371,0.001,3876.3,3875.4,2.58037879]
[1761055366623,0.4721,3876.3,3875.6,2.58019905]
[1761055366935,0.30518753,3876.2,3875.1,3.5864]
[1761055367161,0.30518753,3876.2,3875.9,2.57998413]
[1761055367336,0.4721,3876.3,3875.8,2.58010439]
[1761055367522,0.4721,3876.3,3875.8,2.58009786]
[1761055367729,0.4721,3876.3,3875.9,2.58003187]
[1761055367936,0.4721,3876.3,3875.1,0.59]
[1761055368154,1.728,3876.1,3874.9,0.002]
[1761055368463,0.22001,3876.2,3875.4,2.58037612]
[1761055368665,2.1991,3876.1,3875.5,2.5802926]
[1761055368833,0.4711,3876.0,3875.5,2.5802926]
[1761055369028,0.4711,3876.0,3875.2,2.58050129]
[1761055369029,0.2141,3875.6,3875.4,2.5803561]
[1761055369234,0.2141,3875.6,3874.9,0.002]
[1761055369429,0.4711,3876.0,3875.6,2.58022011]
[1761055369648,0.2141,3875.9,3875.6,2.58022011]
[1761055369831,0.4711,3875.8,3875.6,2.58022011]
[1761055370152,0.2141,3875.9,3875.2,0.1604]
[1761055370330,0.2141,3875.9,3875.5,2.58030902]
[1761055370331,0.4711,3875.8,3875.5,2.58030902]
[1761055370531,0.1288,3875.8,3875.2,0.1288]
[1761055370734,0.001,3876.3,3876.2,2.57984624]
[1761055370954,0.001,3876.3,3876.2,2.83783086]
[1761055371263,0.001,3876.3,3876.2,2.96663086]
[1761055371632,0.001,3876.3,3876.2,2.70864624]
[1761055372664,0.001,3876.3,3876.2,3.00944624]
[1761055373183,0.001,3876.3,3876.2,6.43444624]
[1761055375788,0.001,3876.3,3876.2,6.94132624]
[1761055376498,0.001,3876.3,3876.2,8.67052624]
[1761055376681,0.001,3876.3,3876.2,11.26257642]
[1761055378057,0.001,3876.3,3876.2,7.40677642]
[1761055378258,0.001,3876.3,3876.2,8.66952624]
[1761055381410,0.4455,3878.0,3876.2,8.66952624]
[1761055381411,0.2236,3878.6,3878.3,2.57844932]
[1761055381573,0.2236,3878.9,3878.8,2.57811694]
[1761055381773,0.68929059,3879.5,3878.8,3.423]
[1761055381774,0.40448654,3879.5,3878.8,3.423]
[1761055382099,0.40448654,3879.5,3879.4,2.5777182]
[1761055382461,0.84998654,3879.5,3877.8,2.57874094]
[1761055382662,0.84998654,3879.5,3879.2,2.57784181]
[1761055382865,0.4455,3879.5,3879.1,2.57790004]
[1761055383092,0.4455,3879.5,3878.9,2.57801928]
[1761055383303,0.3,3880.3,3879.0,0.1616]
[1761055383504,0.3,3880.3,3880.2,2.57718674]
[1761055383680,0.3,3880.3,3880.2,6.66866674]
[1761055383865,0.4455,3881.6,3880.6,2.57692109]
[1761055384066,0.55178134,3881.6,3880.6,6.50680109]
[1761055384266,0.91289059,3882.0,3880.6,3.53095959]
[1761055384267,0.4455,3881.7,3880.6,3.53095959]
[1761055384567,0.4455,3881.7,3880.6,5.99892109]
[1761055384878,0.2236,3882.0,3880.6,5.99892109]
[1761055384879,0.4455,3881.6,3880.6,6.50580109]
[1761055385073,0.2236,3882.0,3880.6,6.93660109]
[1761055385283,0.3,3882.2,3881.7,2.57619084]
[1761055386271,0.3,3882.2,3881.7,3.51387084]
[1761055386473,1e-08,3882.2,3882.1,3.0828054]
[1761055386679,1e-08,3882.2,3882.1,27.89081512]
[1761055387001,0.7733,3884.9,3882.1,27.89081512]
[1761055387002,0.4455,3884.8,3884.1,2.574599]
[1761055387390,0.7733,3884.9,3884.0,0.02574665]
[1761055387738,0.2236,3884.4,3883.8,0.024]
[1761055387939,0.2236,3884.4,3883.3,19.47065047]
[1761055388239,0.58283498,3884.2,3883.0,0.1623]
[1761055388441,0.2236,3883.4,3882.1,0.1616]
[1761055388606,0.2236,3883.4,3882.2,5.9968495]
[1761055388803,0.4455,3883.3,3881.7,2.69585543]
[1761055389013,0.4455,3883.3,3881.4,2.74276139]
[1761055389014,0.4455,3883.3,3881.9,2.57605811]
[1761055389229,0.4455,3883.3,3881.4,0.1664]
[1761055389541,0.4455,3883.3,3882.5,2.57561873]
[1761055389701,0.4455,3883.3,3881.9,3.42]
[1761055390051,1.728,3883.1,3881.0,0.1664]
[1761055390254,0.67624803,3883.4,3880.8,3.42]
[1761055390255,0.2236,3881.6,3880.8,3.42]
[1761055390419,0.2236,3881.6,3880.6,2.57689942]
[1761055390621,0.4455,3882.0,3880.9,2.57669996]
[1761055390801,3.42,3882.3,3881.0,0.02576655]
[1761055391001,0.4455,3883.1,3882.5,2.57566001]
[1761055391300,0.2236,3883.0,3882.9,2.57539467]
[1761055391503,0.2236,3883.0,3882.7,2.57546151]
[1761055391703,0.2236,3883.0,3881.9,3.44876058]
[1761055391704,0.2236,3883.0,3882.5,2.60140242]
[1761055391906,0.2236,3883.0,3882.6,2.57559367]
[1761055392125,0.4455,3882.9,3881.8,0.1623]
[1761055392336,2.1735,3882.9,3881.4,0.02576389]
[1761055392558,0.128,3882.4,3881.8,0.1288]
[1761055392753,0.5735,3882.4,3881.8,0.1288]
[1761055393042,0.2236,3881.9,3881.8,0.1288]
[1761055393352,0.2236,3881.9,3880.8,3.424]
[1761055393635,0.2236,3881.9,3881.1,0.1288]
[1761055393636,0.5743,3881.8,3881.1,0.1288]
[1761055393835,0.4455,3881.8,3881.4,0.1288]
[1761055394037,0.4455,3881.7,3881.4,0.1288]
[1761055394245,0.1288,3882.0,3881.4,0.1288]
[1761055394246,0.1288,3882.0,3881.4,3.5528]
[1761055394442,0.4455,3883.3,3881.7,0.50688]
[1761055394937,0.4455,3883.3,3881.6,19.47065047]
[1761055394938,0.4455,3883.3,3882.1,0.50688]
[1761055395140,0.4455,3883.3,3882.3,0.50688]
[1761055395352,0.2236,3882.4,3882.3,2.5757927]
[1761055395518,0.4455,3883.3,3882.4,2.57566263]
[1761055395717,0.4455,3883.3,3882.2,3.428]
[1761055395718,0.4455,3883.3,3882.3,2.5757927]
[1761055396020,0.65,3883.8,3882.4,0.85796282]
[1761055396222,0.13733498,3884.2,3883.9,2.57473158]
[1761055396423,0.58283498,3884.2,3883.5,0.02574996]
[1761055396754,0.58283498,3884.2,3883.4,2.57505224]
[1761055396755,0.4455,3884.1,3883.4,2.57505224]
[1761055396964,0.4455,3884.1,3882.7,2.57552361]
[1761055397119,0.4455,3884.1,3882.6,3.436]
[1761055397522,0.4455,3884.1,3883.4,2.57500189]
[1761055397716,2.57468929,3884.0,3883.1,2.57520981]
[1761055397935,0.4455,3884.1,3883.1,2.57520981]
[1761055398152,0.4455,3884.0,3881.9,0.4308]
[1761055398342,1.728,3883.6,3882.0,0.02575991]
[1761055398541,1.728,3883.2,3881.7,2.57619084]
[1761055398741,0.6537,3883.1,3882.4,2.57566595]
[1761055399042,0.6537,3883.1,3881.6,3.434]
[1761055399231,0.4293,3883.0,3882.1,0.002]
[1761055399652,0.4293,3883.0,3882.4,2.5756835]
[1761055399821,0.4293,3883.0,3882.2,2.57585904]
[1761055400019,1.9524,3883.1,3882.6,2.57554124]
[1761055400020,0.2244,3883.1,3882.6,2.57554124]
[1761055400319,0.4293,3883.0,3882.4,2.57567177]
[1761055400526,0.4293,3883.0,3882.1,0.002]
[1761055400741,3.0046793,3883.0,3882.1,0.002]
[1761055400940,0.4293,3883.0,3882.1,0.002]
[1761055401121,0.9249982,3882.9,3882.1,0.002]
[1761055401325,0.4293,3882.8,3882.1,0.002]
[1761055401525,2.57553645,3882.7,3882.1,0.002]
[1761055401731,5.159,3882.6,3882.1,0.002]
[1761055401963,2.57585904,3882.2,3882.1,0.002]
[1761055402257,2.57599781,3882.0,3881.8,0.002]
[1761055402421,6.60853511,3881.9,3881.8,0.002]
[1761055402628,7.03783511,3881.9,3881.8,0.002]
[1761055402834,0.6537,3881.9,3881.8,0.002]
[1761055403059,3.22975811,3881.9,3881.8,0.002]
[1761055403265,8.99137704,3881.9,3881.8,0.002]
[1761055403859,14.22123604,3881.9,3881.8,0.002]
[1761055404061,8.87884504,3881.9,3881.8,0.002]
[1761055404364,7.72091404,3881.9,3881.8,0.002]
[1761055404668,6.56506193,3881.9,3881.8,0.002]
[1761055405041,13.04462604,3881.9,3881.8,0.002]
[1761055405241,9.32106793,3881.9,3881.8,0.002]
[1761055405442,6.56506193,3881.9,3881.8,0.002]
[1761055405648,11.46042504,3881.9,3881.8,0.002]
[1761055405853,11.88390304,3881.9,3881.8,0.002]
[1761055406052,12.26893904,3881.9,3881.8,0.002]
[1761055406260,13.63029604,3881.9,3881.8,0.002]
[1761055406490,13.88571504,3881.9,3881.8,0.002]
[1761055406778,6.56506193,3881.9,3881.8,0.002]
[1761055407352,9.14112004,3881.9,3881.8,0.002]
[1761055407552,11.31013204,3881.9,3881.8,0.002]
[1761055407770,18.46158904,3881.9,3881.8,0.002]
[1761055407957,14.53463696,3881.9,3881.8,0.002]
[1761055408140,13.34619696,3881.9,3881.8,0.002]
[1761055408468,9.68860896,3881.9,3881.8,0.002]
[1761055409361,12.57462096,3881.9,3881.8,0.002]
[1761055409670,12.97874876,3881.9,3881.8,0.002]
[1761055409870,12.25385576,3881.9,3881.8,0.002]
[1761055410050,11.84972796,3881.9,3881.8,0.002]
[1761055410273,7.11255085,3881.9,3881.8,0.002]